bitfinex-derivatives/quotes_ETHF0:USTF0_20240923
["timestamp","ask_amount","ask_price","bid_price","bid_amount"]
[1727051097398,3.2078,2566.7,2566.3,0.3896]
[1727051097599,3.2078,2566.7,2566.1,2.62]
[1727051097799,0.38957,2566.5,2566.1,2.62]
[1727051097999,0.38957,2566.6,2566.1,3.00963]
[1727051098196,0.38957,2566.6,2566.1,2.62]
[1727051098401,0.38956,2566.6,2566.1,2.62]
[1727051098604,3.59735,2566.7,2566.2,0.38961]
[1727051098795,3.2078,2566.7,2566.1,5.8278]
[1727051098995,3.2078,2566.7,2566.1,2.62]
[1727051099599,3.2078,2566.7,2566.3,0.38959]
[1727051099796,3.59735,2566.7,2566.2,0.38961]
[1727051100001,3.2078,2566.7,2566.3,0.3896]
[1727051100809,3.2078,2566.7,2566.2,0.38961]
[1727051100810,0.38956,2566.6,2566.2,0.38961]
[1727051101000,0.38957,2566.5,2566.1,6.21742]
[1727051101197,3.2078,2566.7,2566.1,3.2078]
[1727051102009,3.2078,2567.0,2566.4,2.62]
[1727051102209,3.2078,2567.0,2566.9,0.38951]
[1727051102510,3.2078,2567.0,2566.5,0.7965]
[1727051102511,3.2078,2567.3,2567.0,0.38948]
[1727051103101,0.38948,2567.2,2566.7,0.38954]
[1727051103301,3.59724,2567.4,2566.9,0.38951]
[1727051103806,3.59724,2567.4,2566.9,0.3895]
[1727051104199,3.2078,2567.4,2566.5,1.77044]
[1727051104403,3.2078,2567.4,2567.0,0.38949]
[1727051105112,3.2078,2567.4,2567.1,0.38948]
[1727051105609,3.2078,2567.4,2567.0,0.38949]
[1727051105812,3.2078,2567.4,2567.1,0.38948]
[1727051106112,3.2078,2567.4,2567.3,0.38945]
[1727051106408,3.2078,2567.7,2567.3,3.8952]
[1727051106615,3.2078,2567.7,2567.0,2.62]
[1727051106809,3.2078,2567.7,2567.3,0.38944]
[1727051107416,3.2078,2567.7,2567.4,0.38943]
[1727051108118,3.2078,2567.7,2567.2,0.79]
[1727051108306,3.2078,2567.7,2567.6,0.38941]
[1727051108905,3.2078,2567.7,2567.2,0.79]
[1727051109607,3.2078,2567.7,2567.6,0.38941]
[1727051110507,3.2078,2567.7,2567.5,0.38941]
[1727051110710,3.5972,2567.7,2567.2,0.79]
[1727051111016,3.2078,2567.7,2567.4,0.38943]
[1727051111311,3.2078,2567.7,2567.2,0.79]
[1727051111704,1.34886,2568.1,2566.7,3.2078]
[1727051111705,3.59724,2567.4,2566.7,3.2078]
[1727051111911,3.59724,2567.4,2567.0,0.38949]
[1727051112515,3.2078,2567.4,2567.2,0.38946]
[1727051112717,3.2078,2567.4,2567.1,0.38947]
[1727051113811,3.2078,2567.7,2567.1,7.103]
[1727051114014,3.2078,2567.7,2566.8,0.97382]
[1727051114015,3.2078,2567.7,2566.8,4.18162]
[1727051114206,3.2078,2567.7,2567.0,0.97375]
[1727051114409,3.2078,2567.7,2567.0,3.59375]
[1727051114616,3.2078,2568.0,2567.3,2.62]
[1727051114809,3.5971,2568.3,2567.9,0.38936]
[1727051115119,3.5971,2568.3,2567.9,0.38935]
[1727051115309,0.38932,2568.2,2567.8,0.38937]
[1727051116113,0.38933,2568.1,2567.7,0.38938]
[1727051116803,0.38938,2567.8,2567.4,0.8015]
[1727051117211,3.2078,2567.7,2567.0,3.2078]
[1727051117409,3.2078,2567.7,2567.1,0.386]
[1727051117606,3.2078,2567.7,2567.4,0.38943]
[1727051117911,3.59711,2568.3,2567.8,0.38937]
[1727051118609,3.59711,2568.3,2567.8,0.38936]
[1727051119011,3.59711,2568.3,2567.9,0.38936]
[1727051119722,0.38932,2568.2,2567.3,7.18363]
[1727051120118,0.38932,2568.2,2567.8,0.38937]
[1727051120920,3.59711,2568.3,2567.9,0.38936]
[1727051121110,0.38932,2568.2,2567.8,0.38937]
[1727051121315,3.59711,2568.3,2567.9,0.38936]
[1727051121611,3.5971,2568.3,2567.9,0.38935]
[1727051122011,3.5971,2568.3,2567.8,0.38937]
[1727051122012,0.38932,2568.2,2567.8,0.38937]
[1727051122214,0.38932,2568.2,2567.5,0.76802]
[1727051122215,0.38937,2567.9,2567.5,0.76802]
[1727051123313,0.38937,2567.9,2567.6,0.3894]
[1727051123609,0.38937,2567.9,2567.5,0.3786]
[1727051123610,3.2078,2567.7,2567.1,0.386]
[1727051123806,0.38943,2567.5,2567.1,0.77547]
[1727051124010,0.97344,2567.8,2567.1,0.77547]
[1727051124011,3.59726,2567.3,2567.1,0.386]
[1727051124210,4.18134,2567.6,2567.0,0.4067]
[1727051124412,0.38947,2567.2,2567.0,0.4067]
[1727051124622,3.59726,2567.3,2566.9,3.2078]
[1727051124821,3.59726,2567.3,2566.7,0.3691]
[1727051124822,3.2078,2567.3,2566.7,0.3691]
[1727051125117,0.3895,2567.0,2566.7,0.3691]
[1727051125319,0.3849,2567.2,2566.7,0.3691]
[1727051125520,4.18156,2567.0,2566.3,1.00497886]
[1727051125817,1.35858,2567.2,2566.2,3.2078]
[1727051125818,0.38956,2566.6,2566.2,3.2078]
[1727051126019,3.2078,2566.9,2566.2,3.59741]
[1727051126020,0.38954,2566.8,2566.2,3.59741]
[1727051126916,0.38954,2566.7,2566.2,3.2078]
[1727051127224,3.2078,2566.9,2566.4,0.38959]
[1727051127720,3.59731,2566.9,2566.3,0.38959]
[1727051128015,0.38953,2566.8,2566.2,3.59741]
[1727051128419,3.2078,2566.9,2566.2,3.2078]
[1727051128420,0.38955,2566.7,2566.2,3.2078]
[1727051128722,0.38954,2566.8,2566.2,3.59742]
[1727051129024,0.38954,2566.7,2566.2,3.2078]
[1727051129217,3.59736,2566.6,2566.2,3.2078]
[1727051130119,3.2078,2566.6,2566.2,3.2078]
[1727051130320,3.2078,2566.6,2566.2,3.59741]
[1727051130522,3.2078,2566.9,2566.2,3.2078]
[1727051130719,0.38953,2566.8,2566.3,0.38959]
[1727051130920,3.2078,2566.9,2566.2,3.59742]
[1727051131117,0.38953,2566.8,2566.2,3.59742]
[1727051131313,3.2078,2566.9,2566.2,3.2078]
[1727051131518,0.38955,2566.7,2566.2,3.2078]
[1727051131816,3.2078,2566.9,2566.2,3.2078]
[1727051132022,3.2078,2566.9,2566.4,0.38958]
[1727051132213,3.59732,2566.9,2566.4,0.38958]
[1727051132419,3.2078,2566.9,2566.7,0.38954]
[1727051132727,3.2078,2566.9,2566.2,3.2078]
[1727051133027,3.2078,2566.3,2566.1,0.3691]
[1727051133617,3.2078,2566.3,2566.1,4.2659]
[1727051133921,3.2078,2566.3,2566.1,0.3691]
[1727051136024,3.59737,2566.6,2566.1,0.75873]
[1727051136218,3.2078,2566.6,2566.3,0.38959]
[1727051136426,3.2078,2566.6,2566.5,2.13]
[1727051136618,3.2078,2566.9,2566.5,2.51957]
[1727051136821,3.2078,2566.9,2566.7,2.13]
[1727051137020,3.2078,2566.9,2566.7,2.51953]
[1727051138024,3.2078,2566.9,2566.8,3.896]
[1727051138224,3.2078,2566.9,2566.8,0.3784]
[1727051138931,3.2078,2566.9,2566.3,3.2078]
[1727051139425,3.2078,2566.9,2566.5,0.38957]
[1727051139628,3.2078,2566.9,2566.3,3.2078]
[1727051139831,3.2078,2566.9,2566.6,0.38955]
[1727051140730,3.2078,2566.9,2566.3,3.2078]
[1727051140731,3.2078,2566.9,2566.7,0.38953]
[1727051141728,3.2078,2566.9,2566.7,3.896]
[1727051141929,3.2078,2566.9,2566.7,0.38954]
[1727051142230,3.2078,2566.9,2566.3,4.21277886]
[1727051142433,3.2078,2566.9,2566.7,0.38953]
[1727051145329,3.2078,2566.9,2566.3,4.21277886]
[1727051145330,3.2078,2566.9,2566.8,4.28553]
[1727051145529,3.2078,2567.2,2566.7,0.97386]
[1727051145719,3.2078,2567.5,2566.8,3.0137]
[1727051145923,3.59718,2567.8,2567.4,0.38944]
[1727051146125,3.59718,2567.8,2567.5,0.38942]
[1727051146637,3.2078,2567.8,2567.7,0.38939]
[1727051147736,3.2078,2567.8,2567.6,0.3894]
[1727051147934,3.2078,2567.8,2567.7,0.38939]
[1727051148634,3.2078,2567.8,2567.6,0.3894]
[1727051148825,3.2078,2567.8,2567.5,0.38941]
[1727051149328,0.38936,2568.0,2567.5,0.38942]
[1727051149525,0.38936,2568.0,2567.6,0.3894]
[1727051149833,0.38936,2568.0,2567.5,0.38941]
[1727051150730,3.2078,2568.1,2567.4,0.3807]
[1727051151324,3.2078,2568.1,2567.7,0.38939]
[1727051151824,3.2078,2568.1,2567.8,0.38937]
[1727051153638,3.2078,2568.1,2567.5,3.2078]
[1727051153639,3.2078,2568.1,2567.6,0.4012]
[1727051153822,3.2078,2568.1,2568.0,0.38934]
[1727051154832,3.2078,2568.1,2568.0,4.28374]
[1727051155438,3.2078,2568.1,2568.0,0.38934]
[1727051155730,3.2078,2568.1,2568.0,4.28374]
[1727051155933,3.2078,2568.1,2568.0,0.38934]
[1727051156327,3.2078,2568.1,2567.9,0.38934]
[1727051156528,3.2078,2568.1,2568.0,0.38934]
[1727051158431,0.3784,2568.6,2568.0,0.38934]
[1727051158432,3.2078,2568.4,2568.0,3.8944]
[1727051158634,3.59709,2568.4,2568.1,0.38932]
[1727051158831,3.2078,2568.4,2568.0,0.38934]
[1727051159030,0.38931,2568.3,2568.0,0.38934]
[1727051159239,3.59709,2568.4,2568.0,0.38934]
[1727051159432,3.2078,2568.4,2568.1,0.38932]
[1727051160835,8.07464,2568.4,2567.6,0.4012]
[1727051161047,0.38935,2568.0,2567.6,0.7906]
[1727051161243,0.38935,2568.0,2567.7,0.38939]
[1727051161538,0.38935,2568.0,2567.6,0.4012]
[1727051161539,0.38935,2568.0,2567.6,0.7906]
[1727051161736,3.59714,2568.1,2567.7,0.38939]
[1727051161927,3.2078,2568.1,2567.7,2.13]
[1727051162127,3.2078,2568.1,2567.8,0.38937]
[1727051162834,0.97341,2567.9,2567.1,3.2078]
[1727051163035,3.2078,2567.8,2567.5,0.38942]
[1727051163343,3.59718,2567.8,2567.4,0.38943]
[1727051163634,3.2078,2567.8,2567.5,0.38942]
[1727051163824,3.2078,2567.8,2567.7,0.38939]
[1727051164024,3.591,2568.3,2567.7,2.13]
[1727051164230,3.2078,2568.3,2568.2,0.38931]
[1727051164932,3.2078,2568.3,2568.1,0.38932]
[1727051165237,3.2078,2568.3,2568.2,0.38931]
[1727051165443,3.2078,2568.3,2568.2,2.51931]
[1727051165741,0.3893,2568.3,2567.9,0.38935]
[1727051165937,0.38929,2568.4,2568.0,0.38934]
[1727051166643,3.48803,2568.7,2567.9,0.38935]
[1727051166644,3.2078,2568.1,2567.9,0.38935]
[1727051166828,3.2078,2568.1,2567.5,2.51941]
[1727051167039,3.2078,2568.1,2567.5,0.38941]
[1727051167342,0.38937,2567.9,2567.5,0.38941]
[1727051167537,0.372,2568.0,2567.5,2.13]
[1727051167735,0.372,2568.0,2567.7,0.38939]
[1727051167933,0.372,2568.0,2567.8,0.38937]
[1727051168543,0.372,2568.0,2567.3,0.6031681]
[1727051168544,0.372,2568.0,2567.5,2.13]
[1727051168737,3.59718,2567.8,2567.5,2.13]
[1727051168927,3.2078,2567.8,2567.5,2.51942]
[1727051169237,3.2078,2567.8,2567.6,0.3894]
[1727051169639,3.2078,2567.8,2567.7,2.13]
[1727051170437,0.76135,2568.0,2567.7,2.13]
[1727051170741,0.372,2568.0,2567.3,0.4057]
[1727051170942,3.5972,2567.7,2567.3,0.79514]
[1727051171138,3.2078,2567.7,2567.3,0.4057]
[1727051171342,0.38937,2567.9,2567.4,0.38944]
[1727051171643,0.3894,2567.7,2567.3,0.79515]
[1727051172647,3.59717,2567.8,2567.4,0.38942]
[1727051172852,3.2078,2567.8,2567.3,2.5357]
[1727051173149,0.76134,2568.0,2567.7,0.38939]
[1727051174141,0.76134,2568.0,2567.6,0.3894]
[1727051174849,0.76134,2568.0,2567.3,2.5357]
[1727051174850,0.372,2568.0,2567.7,0.38939]
[1727051175045,0.372,2568.0,2567.8,0.38937]
[1727051175349,0.372,2568.0,2567.7,0.38938]
[1727051176144,0.372,2568.0,2567.6,2.13]
[1727051176145,0.372,2568.0,2567.8,0.38937]
[1727051176358,0.8147,2568.2,2567.6,2.13]
[1727051176359,0.4059,2568.2,2567.6,2.13]
[1727051176646,0.4059,2568.2,2567.6,0.3894]
[1727051176647,0.38935,2568.0,2567.6,0.3894]
[1727051176845,0.4021,2567.9,2567.6,0.3894]
[1727051177946,0.4021,2567.9,2567.7,0.38938]
[1727051178657,0.4021,2567.9,2567.6,0.3894]
[1727051178954,3.59713,2568.1,2567.7,0.38938]
[1727051179941,3.2078,2568.1,2567.8,0.38937]
[1727051180140,3.2078,2568.1,2567.6,2.13]
[1727051180350,3.2078,2568.1,2567.7,0.38938]
[1727051180546,3.2078,2568.1,2567.6,2.13]
[1727051180757,3.2078,2568.1,2567.7,0.38939]
[1727051181360,3.2078,2568.1,2567.8,0.38937]
[1727051181660,3.6104,2568.4,2567.9,0.38935]
[1727051182063,7.504,2568.4,2567.9,0.38935]
[1727051182357,0.3893,2568.3,2567.9,0.38935]
[1727051182551,0.38932,2568.2,2567.8,0.38937]
[1727051182758,3.2078,2568.1,2567.8,0.38937]
[1727051182957,0.38931,2568.3,2567.9,0.38936]
[1727051183360,0.38931,2568.3,2567.6,2.13]
[1727051183361,3.2078,2568.4,2568.2,2.13]
[1727051183755,3.8936,2568.3,2568.2,2.13]
[1727051184153,9.8936,2568.3,2568.2,2.13]
[1727051185266,10.28291,2568.3,2568.0,2.13]
[1727051185568,3.8936,2568.2,2567.9,0.3998]
[1727051185858,4.28291,2568.3,2567.9,0.3998]
[1727051186063,3.2078,2568.4,2568.1,0.38933]
[1727051186251,3.2078,2568.4,2568.0,2.13]
[1727051186455,3.8936,2568.3,2568.0,2.51934]
[1727051186950,3.8936,2568.2,2568.0,2.51934]
[1727051187158,3.8936,2568.3,2568.0,2.51934]
[1727051187357,3.8936,2568.3,2567.9,0.3998]
[1727051187563,3.2078,2568.0,2567.6,1.00497886]
[1727051187762,3.2078,2568.0,2567.5,3.6066]
[1727051187969,0.38937,2567.9,2567.5,3.6066]
[1727051188177,3.2078,2568.0,2567.7,0.38938]
[1727051188474,7.1022,2568.0,2567.7,0.38938]
[1727051188665,1.73825945,2568.2,2567.5,6.74157886]
[1727051188869,0.7455,2568.2,2567.8,2.13]
[1727051189170,0.99275945,2568.1,2567.8,2.13]
[1727051189671,1.38208945,2568.1,2567.8,2.13]
[1727051190270,0.99275945,2568.0,2567.8,2.13]
[1727051190472,0.38938,2567.8,2567.6,1.00497886]
[1727051190965,3.8944,2567.7,2567.5,1.00497886]
[1727051191161,3.8944,2567.6,2567.5,1.00497886]
[1727051191468,1.38215945,2567.7,2567.4,1.00497886]
[1727051191865,5.27655945,2567.7,2567.4,1.00497886]
[1727051192570,5.27655945,2567.7,2567.0,1.00497886]
[1727051192571,4.18136,2567.5,2567.0,1.00497886]
[1727051192773,0.38951,2566.9,2566.7,1.00497886]
[1727051193073,4.2157093,2566.8,2566.5,1.38917886]
[1727051193265,3.2078,2566.8,2566.5,1.38917886]
[1727051193466,3.2078,2566.8,2566.5,0.3842]
[1727051193867,1.7482093,2567.0,2566.5,1.00497886]
[1727051194068,1.7482093,2567.0,2566.3,3.63746829]
[1727051194069,3.2078,2566.7,2566.3,3.13497886]
[1727051194271,3.2078,2566.7,2566.3,2.13]
[1727051194564,3.59735,2566.7,2566.3,2.13]
[1727051194771,0.38956,2566.6,2566.3,2.13]
[1727051194971,3.59735,2566.7,2566.3,2.13]
[1727051195165,0.38956,2566.6,2566.3,2.13]
[1727051195372,3.2078,2566.7,2566.3,2.13]
[1727051195579,0.38956,2566.6,2566.3,2.13]
[1727051195778,3.59734,2566.7,2566.5,2.13]
[1727051195973,0.38957,2566.5,2566.3,2.13]
[1727051196372,4.28637,2566.5,2566.3,2.13]
[1727051196879,3.2078,2566.4,2566.3,2.13]
[1727051197070,3.2078,2566.4,2566.2,0.4097]
[1727051197071,3.59739,2566.4,2566.2,0.4097]
[1727051197284,3.8968,2566.3,2565.9,2.13]
[1727051197474,3.8968,2566.3,2565.7,3.2078]
[1727051197475,0.38965,2566.0,2565.7,5.3378]
[1727051197973,0.38965,2566.0,2565.7,2.13]
[1727051198684,3.2078,2566.1,2565.7,2.13]
[1727051198867,3.2078,2566.1,2565.9,2.13]
[1727051199068,3.9788,2566.4,2565.9,2.13]
[1727051199273,3.9788,2566.4,2566.1,2.13]
[1727051199472,0.38961,2566.3,2566.1,2.13]
[1727051200276,0.38961,2566.3,2565.6,0.4016]
[1727051200277,3.8968,2566.2,2565.9,2.13]
[1727051200484,3.59744,2566.1,2565.9,2.13]
[1727051200781,3.2078,2566.1,2565.9,2.13]
[1727051201284,3.2078,2566.4,2565.9,2.13]
[1727051201481,3.2078,2566.4,2566.2,2.13]
[1727051201667,3.2078,2566.4,2564.3,1.00497886]
[1727051201668,0.97423,2565.8,2564.3,1.00497886]
[1727051201977,3.2078,2566.0,2564.5,3.8968]
[1727051201978,3.2078,2564.6,2564.5,3.8968]
[1727051202670,3.2078,2564.6,2564.5,4.28668]
[1727051203286,3.2078,2564.6,2564.5,3.8968]
[1727051205880,3.2078,2564.6,2564.5,4.28668]
[1727051206082,3.2078,2564.6,2564.3,0.3899]
[1727051206385,3.2078,2564.6,2564.4,4.28669]
[1727051206584,3.2078,2564.6,2564.5,0.38988]
[1727051206890,3.2078,2564.6,2564.5,4.28668]
[1727051207185,3.2078,2564.6,2564.5,3.8968]
[1727051207378,13.107,2564.6,2564.1,1.15393]
[1727051207577,3.2078,2564.6,2564.3,3.8968]
[1727051207785,3.2078,2564.6,2564.3,4.28671]
[1727051208082,3.2078,2564.6,2564.4,0.38989]
[1727051208481,3.2078,2564.6,2564.5,4.28668]
[1727051208683,3.2078,2564.6,2564.5,3.8968]
[1727051209784,3.2078,2564.6,2564.5,4.28668]
[1727051209981,3.2078,2564.6,2564.5,6.0268]
[1727051210287,3.2078,2564.6,2564.5,3.8968]
[1727051210884,3.2078,2564.6,2564.5,0.38988]
[1727051211090,3.2078,2564.6,2564.5,4.28668]
[1727051212082,3.2078,2564.6,2564.5,6.41668]
[1727051212684,3.2078,2564.6,2564.5,4.28668]
[1727051214687,3.2078,2564.6,2564.5,6.41668]
[1727051215182,3.2078,2564.6,2564.5,4.28668]
[1727051217881,3.2078,2564.9,2564.7,0.38984]
[1727051218081,3.2078,2564.9,2564.8,4.28663]
[1727051219476,3.2078,2564.9,2564.8,0.38983]
[1727051219683,3.2078,2564.9,2564.8,3.8968]
[1727051219880,3.59762,2564.9,2564.8,3.8968]
[1727051220077,13.107,2564.9,2564.1,5.3378]
[1727051220282,0.38989,2564.4,2564.1,4.28673]
[1727051220478,3.2078,2564.5,2564.1,4.28673]
[1727051220479,0.38991,2564.3,2564.1,3.8968]
[1727051220677,3.59773,2564.2,2563.9,0.38996]
[1727051220882,3.2078,2564.2,2564.0,0.38995]
[1727051221090,3.2078,2564.2,2563.9,3.8968]
[1727051221091,3.2078,2564.2,2564.1,0.38994]
[1727051221276,3.2078,2564.2,2564.1,6.41674]
[1727051222081,3.2078,2564.5,2564.1,6.41674]
[1727051222281,3.2078,2564.5,2564.4,4.28669]
[1727051223595,3.2078,2564.5,2564.4,6.41669]
[1727051224593,3.2078,2564.8,2564.7,0.38985]
[1727051224887,3.2078,2565.1,2564.9,0.38981]
[1727051225391,3.2078,2565.1,2565.0,3.8968]
[1727051225991,3.2078,2565.1,2565.0,4.2866]
[1727051227382,0.4018,2565.5,2565.4,0.38973]
[1727051227383,3.2078,2565.5,2565.4,0.38973]
[1727051227693,3.2078,2565.5,2565.4,4.28653]
[1727051227989,3.2078,2565.8,2565.6,0.3897]
[1727051228190,3.2078,2565.8,2565.6,4.2865]
[1727051228500,0.3895,2566.1,2565.7,3.8968]
[1727051228501,3.2078,2566.1,2565.7,3.8968]
[1727051228798,3.2078,2566.1,2566.0,4.28645]
[1727051229393,0.3895,2566.4,2566.1,0.38963]
[1727051229787,0.77909,2566.4,2565.8,2.5344]
[1727051229985,3.2078,2566.3,2566.0,3.8968]
[1727051230191,3.59741,2566.3,2566.0,3.8968]
[1727051230491,3.2078,2566.3,2566.1,0.38963]
[1727051230990,3.2078,2566.3,2566.2,0.38962]
[1727051231186,3.2078,2566.3,2566.2,4.28642]
[1727051231890,0.3732,2566.8,2566.6,0.38956]
[1727051231891,3.2078,2566.8,2566.6,0.38956]
[1727051232995,0.3902,2567.0,2566.5,0.3883]
[1727051233293,3.2078,2567.1,2566.5,0.3883]
[1727051233294,3.2078,2567.1,2566.9,4.2863]
[1727051233489,3.2078,2567.1,2567.0,3.8968]
[1727051236992,9.2078,2567.1,2566.6,0.369]
[1727051237186,3.2078,2567.1,2566.8,3.8968]
[1727051237393,3.2078,2567.1,2566.8,4.28632]
[1727051237800,3.2078,2567.1,2566.9,4.28631]
[1727051237991,3.2078,2567.1,2567.0,4.2863]
[1727051239997,3.2078,2567.1,2567.0,3.8968]
[1727051240902,3.59728,2567.1,2567.0,3.8968]
[1727051241104,3.2078,2567.1,2567.0,3.8968]
[1727051243907,3.2078,2567.1,2567.0,4.2863]
[1727051245803,3.2078,2567.1,2567.0,3.8968]
[1727051246005,3.59728,2567.1,2567.0,3.8968]
[1727051246501,0.3895,2567.0,2566.7,0.38954]
[1727051246706,0.3895,2567.0,2566.9,3.8968]
[1727051247101,3.59729,2567.1,2566.9,3.8968]
[1727051247905,3.2078,2567.1,2566.9,4.28631]
[1727051248112,3.59728,2567.1,2567.0,3.8968]
[1727051249013,0.38951,2566.9,2566.6,0.75855]
[1727051249209,3.2078,2566.8,2566.6,3.8968]
[1727051249412,3.2078,2566.8,2566.6,4.28635]
[1727051249601,3.2078,2566.8,2566.7,3.8968]
[1727051249806,3.2078,2566.8,2566.7,4.28634]
[1727051250006,3.2078,2567.1,2566.7,3.8968]
[1727051250197,3.2078,2567.1,2567.0,4.2863]
[1727051253004,3.2078,2567.1,2567.0,5.26005]
[1727051253215,3.2078,2567.7,2567.0,3.8968]
[1727051253403,3.2078,2567.7,2567.4,0.38943]
[1727051253404,3.5972,2567.7,2567.4,0.38943]
[1727051255215,3.2078,2567.7,2567.6,4.28621]
[1727051257914,3.2078,2567.7,2567.6,3.8968]
[1727051258116,3.2078,2567.7,2567.6,4.28621]
[1727051259417,3.2078,2568.1,2567.6,3.8968]
[1727051259620,3.2078,2568.1,2567.5,2.13]
[1727051259621,3.2078,2568.1,2567.9,4.28615]
[1727051259917,3.2078,2568.1,2567.9,3.8968]
[1727051260710,0.38934,2568.0,2567.9,3.8968]
[1727051261612,8.13,2568.0,2567.4,0.7393]
[1727051261816,3.2078,2567.7,2567.5,3.8968]
[1727051262320,3.5972,2567.7,2567.5,3.8968]
[1727051262509,0.38941,2567.6,2567.2,0.38946]
[1727051262711,0.77642,2567.6,2567.4,3.8968]
[1727051262911,0.387,2567.6,2567.4,3.8968]
[1727051263321,0.387,2567.6,2567.4,4.28623]
[1727051263516,3.5972,2567.7,2567.5,3.8968]
[1727051263822,0.38941,2567.6,2567.5,3.8968]
[1727051267611,3.6007,2567.7,2567.5,3.8968]
[1727051267815,0.38941,2567.6,2567.5,3.8968]
[1727051269126,10.86792,2567.6,2567.0,0.4057]
[1727051269418,3.2078,2567.3,2567.1,3.8968]
[1727051269625,3.2078,2567.6,2567.4,3.8968]
[1727051269822,3.59721,2567.6,2567.4,3.8968]
[1727051270023,3.2078,2567.6,2567.4,3.8968]
[1727051270819,3.59721,2567.6,2567.4,3.8968]
[1727051271019,3.2078,2567.6,2567.4,3.8968]
[1727051271322,3.2078,2567.6,2567.5,4.28622]
[1727051273720,3.2078,2567.6,2567.5,3.8968]
[1727051273926,3.2078,2567.6,2567.5,4.28622]
[1727051274125,3.2078,2567.6,2567.5,3.8968]
[1727051274321,3.2078,2567.6,2567.1,0.38948]
[1727051274525,3.2078,2567.3,2567.1,0.38948]
[1727051275022,3.2078,2567.3,2567.2,4.28627]
[1727051275224,3.2078,2567.3,2567.2,3.8968]
[1727051275526,3.2078,2567.3,2567.2,4.28627]
[1727051276319,3.2078,2567.3,2567.2,5.25994]
[1727051276625,3.2078,2567.6,2567.5,0.38942]
[1727051276831,3.2078,2567.6,2567.4,3.8968]
[1727051277021,3.2078,2567.6,2567.4,4.28623]
[1727051278023,3.2078,2567.6,2567.5,4.28622]
[1727051278527,3.2078,2567.6,2567.5,3.8968]
[1727051279125,3.2078,2567.6,2567.5,4.28622]
[1727051279819,3.2078,2567.6,2567.5,5.30485145]
[1727051280331,3.59715,2568.0,2567.8,0.38937]
[1727051280628,0.38936,2567.9,2567.8,3.8968]
[1727051281127,3.2078,2568.0,2567.8,3.8968]
[1727051281128,3.59715,2568.0,2567.8,3.8968]
[1727051281625,3.2078,2568.0,2567.8,3.8968]
[1727051281928,3.59715,2568.0,2567.8,3.8968]
[1727051282228,3.2078,2568.0,2567.8,3.8968]
[1727051282428,3.2078,2568.0,2567.9,3.8968]
[1727051283016,3.2078,2568.0,2567.9,4.28616]
[1727051283723,1.00037349,2568.2,2567.9,4.28616]
[1727051283931,1.38969349,2568.2,2567.9,4.28616]
[1727051284530,0.38934,2568.1,2567.9,3.8968]
[1727051284825,3.59714,2568.0,2567.9,3.8968]
[1727051285433,3.2078,2568.0,2567.9,3.8968]
[1727051286130,0.97341,2567.9,2567.5,1.40523145]
[1727051286323,0.97341,2567.9,2567.5,3.8968]
[1727051286324,3.59721,2567.6,2567.5,3.8968]
[1727051286523,3.59721,2567.6,2567.3,1.01863145]
[1727051286734,3.59721,2567.6,2567.4,3.8968]
[1727051286928,3.59721,2567.6,2567.1,1.01863145]
[1727051286929,0.38947,2567.2,2567.1,1.01863145]
[1727051287129,3.59727,2567.2,2567.0,1.01863145]
[1727051287331,3.59727,2567.2,2566.9,1.16341]
[1727051287332,3.2078,2567.2,2567.1,3.8968]
[1727051297240,3.2078,2567.2,2567.1,4.91543145]
[1727051297541,3.2078,2567.2,2567.1,7.43491145]
[1727051297726,3.2078,2567.2,2567.1,8.62266977]
[1727051297934,3.2078,2567.2,2567.1,7.60403832]
[1727051298242,3.2078,2567.5,2567.3,0.38945]
[1727051298438,3.2078,2567.5,2567.3,1.02031107]
[1727051298746,3.2078,2567.5,2567.4,3.8968]
[1727051298927,3.59722,2567.5,2567.4,3.8968]
[1727051299635,3.2078,2567.5,2567.4,4.28624]
[1727051299943,3.2078,2567.8,2567.7,0.38938]
[1727051300142,1.00037349,2568.0,2567.7,4.28618]
[1727051300461,1.00037349,2568.0,2567.8,3.8968]
[1727051300639,1.00037349,2568.0,2567.6,1.02022973]
[1727051300640,1.00037349,2568.0,2567.9,3.8968]
[1727051301230,4.20817349,2568.1,2567.9,3.8968]
[1727051302439,3.2078,2568.1,2568.0,3.8968]
[1727051306135,3.2078,2568.1,2568.0,4.28614]
[1727051306535,3.2078,2568.1,2568.0,3.8968]
[1727051308430,3.59713,2568.1,2568.0,3.8968]
[1727051308627,3.5981,2568.1,2568.0,3.8968]
[1727051308836,3.98743,2568.1,2568.0,3.8968]
[1727051311632,3.98743,2568.1,2567.6,3.54732973]
[1727051311832,3.2078,2567.8,2567.6,0.3971]
[1727051312037,3.59717,2567.8,2567.7,3.8968]
[1727051312238,0.38942,2567.5,2567.4,1.02022973]
[1727051312544,0.38942,2567.5,2567.4,3.8968]
[1727051312545,3.59722,2567.5,2567.4,3.8968]
[1727051312936,3.2078,2567.5,2567.4,3.8968]
[1727051313939,3.2078,2567.5,2567.1,1.42882973]
[1727051314139,3.2078,2567.2,2567.1,0.4086]
[1727051314540,3.2078,2567.2,2567.1,4.3054]
[1727051315740,3.98163,2567.5,2567.1,4.69488]
[1727051315945,3.98163,2567.5,2567.3,3.8968]
[1727051316149,3.5922,2567.5,2567.3,3.8968]
[1727051316338,3.2078,2567.5,2567.4,3.8968]